fUST/lending_fUST_20260322
["ID","MTS","AMOUNT","RATE_DAILY","PERIOD"]
[408729857,1774177838770,-196.536097,0.00010931,2]
[408729858,1774177838779,-714.387056,0.00010931,2]
[408729859,1774177838789,-196.536097,0.00010931,2]
[408729860,1774177838798,-714.387056,0.00010931,2]
[408729861,1774177838808,-196.536097,0.00010931,2]
[408729862,1774177838817,-714.387056,0.00010931,2]
[408729863,1774177838826,-196.536097,0.00010931,2]
[408729864,1774177838836,-714.387056,0.00010931,2]
[408729865,1774177838845,-196.536097,0.00010931,2]
[408729866,1774177838855,-714.387046,0.00010931,2]
[408729867,1774177838864,-196.536097,0.00010931,2]
[408729868,1774177838873,-196.536097,0.00010931,2]
[408729869,1774177838883,-196.536097,0.00010931,2]
[408729870,1774177838892,-196.536097,0.00010931,2]
[408729871,1774177838901,-196.536097,0.00010931,2]
[408729872,1774177838910,-196.536097,0.00010931,2]
[408729873,1774177838920,-196.536097,0.00010931,2]
[408729874,1774177838930,-196.536097,0.00010931,2]
[408729875,1774177838940,-196.536097,0.00010931,2]
[408729876,1774177838949,-196.536097,0.00010931,2]
[408729877,1774177838958,-196.536097,0.00010931,2]
[408729878,1774177838968,-196.536093,0.00010931,2]
[408729879,1774177838978,-151.0,0.00010931,2]
[408729880,1774177839235,-151.0,0.00010931,2]
[408729881,1774177839245,-151.0,0.00010931,2]
[408729882,1774177839255,-151.0,0.00010931,2]
[408729883,1774177839264,-151.0,0.00010931,2]
[408729884,1774177839273,-151.0,0.00010931,2]
[408729885,1774177839282,-151.0,0.00010931,2]
[408729886,1774177839291,-151.0,0.00010931,2]
[408729887,1774177839301,-151.0,0.00010931,2]
[408729888,1774177839310,-151.0,0.00010931,2]
[408729889,1774177839319,-151.0,0.00010931,2]
[408729890,1774177839328,-151.0,0.00010931,2]
[408729891,1774177839337,-151.0,0.00010931,2]
[408729892,1774177839347,-151.0,0.00010931,2]
[408729893,1774177839356,-151.0,0.00010931,2]
[408729894,1774177839365,-151.0,0.00010931,2]
[408729895,1774177839374,-151.0,0.00010931,2]
[408729896,1774177839384,-151.0,0.00010931,2]
[408729897,1774177839393,-170.514077,0.00010931,2]
[408729898,1774177839402,-408.781991,0.00010931,2]
[408729899,1774177839411,-408.781991,0.00010931,2]
[408729900,1774177839421,-408.781991,0.00010931,2]
[408729901,1774177839431,-408.781991,0.00010931,2]
[408729902,1774177839440,-408.781991,0.00010931,2]
[408729903,1774177839449,-408.781991,0.00010931,2]
[408729904,1774177839458,-408.781991,0.00010931,2]
[408729905,1774177839468,-408.781991,0.00010931,2]
[408729906,1774177839477,-408.781991,0.00010931,2]
[408729907,1774177839486,-408.781991,0.00010931,2]
[408729908,1774177839495,-408.781991,0.00010931,2]
[408729909,1774177839505,-408.781991,0.00010931,2]
[408729910,1774177839514,-408.781991,0.00010931,2]
[408729911,1774177839524,-408.781991,0.00010931,2]
[408729912,1774177839533,-408.781991,0.00010931,2]
[408729913,1774177839542,-408.781991,0.00010931,2]
[408729914,1774177839552,-408.781991,0.00010931,2]
[408729915,1774177839561,-408.781991,0.00010931,2]
[408729916,1774177839570,-408.781991,0.00010931,2]
[408729917,1774177839579,-408.781999,0.00010931,2]
[408729918,1774177839588,-151.0,0.00010931,2]
[408729919,1774177839597,-151.0,0.00010931,2]
[408729920,1774177839606,-158.234478,0.00010931,2]
[408729921,1774177839616,-151.0,0.00010931,2]
[408729922,1774177839625,-151.0,0.00010931,2]
[408729923,1774177839634,-151.0,0.00010931,2]
[408729924,1774177839643,-151.0,0.00010931,2]
[408729925,1774177839652,-151.0,0.00010931,2]
[408729926,1774177839661,-151.0,0.00010931,2]
[408729927,1774177839670,-165.319315,0.00010931,2]
[408729928,1774177839679,-500.0,0.00010931,2]
[408729929,1774177839688,-500.0,0.00010931,2]
[408729930,1774177839697,-166.20925394,0.00010931,2]
[408729931,1774177839706,-500.1638165,0.00010931,2]
[408729932,1774177839715,-500.1638165,0.00010931,2]
[408729933,1774177839725,-500.0,0.00010931,2]
[408729934,1774177839733,-500.1638165,0.00010931,2]
[408729935,1774177839743,-500.1638165,0.00010931,2]
[408729936,1774177839756,-395.99079976,0.00010931,2]
[408729937,1774177839766,-500.1638165,0.00010931,2]
[408729938,1774177839775,-500.1638165,0.00010931,2]
[408729939,1774177839784,-500.1638165,0.00010931,2]
[408729940,1774177839793,-500.1638165,0.00010931,2]
[408729941,1774177839803,-500.1638165,0.00010931,2]
[408729942,1774177839814,-500.1638165,0.00010931,2]
[408729943,1774177839823,-500.1638165,0.00010931,2]
[408729944,1774177839832,-500.1638165,0.00010931,2]
[408729945,1774177839842,-500.1638165,0.00010931,2]
[408729946,1774177839851,-500.1638165,0.00010931,2]
[408729947,1774177839861,-500.1638165,0.00010931,2]
[408729948,1774177839870,-500.1638165,0.00010931,2]
[408729949,1774177839879,-500.1638165,0.00010931,2]
[408729950,1774177839889,-500.1638165,0.00010931,2]
[408729951,1774177839898,-500.1638165,0.00010931,2]
[408729952,1774177839908,-500.1638165,0.00010931,2]
[408729953,1774177839918,-500.1638165,0.00010931,2]
[408729954,1774177839927,-500.1638165,0.00010931,2]
[408729955,1774177839936,-500.1638165,0.00010931,2]
[408729956,1774177839945,-500.1638165,0.00010931,2]
[408729957,1774177839955,-500.1638165,0.00010931,2]
[408729958,1774177839963,-500.1638165,0.00010931,2]
[408729959,1774177839972,-500.1638165,0.00010931,2]
[408729960,1774177839981,-500.1638165,0.00010931,2]
[408729961,1774177839991,-500.1638165,0.00010931,2]
[408729962,1774177840001,-500.1638165,0.00010931,2]
[408729963,1774177840009,-500.1638165,0.00010931,2]
[408729964,1774177840019,-500.1638165,0.00010931,2]
[408729965,1774177840028,-500.1638165,0.00010931,2]
[408729966,1774177840037,-500.1638165,0.00010931,2]
[408729967,1774177840046,-500.1638165,0.00010931,2]
[408729968,1774177840055,-500.1638165,0.00010931,2]
[408729969,1774177840065,-500.1638165,0.00010931,2]
[408729970,1774177840074,-500.1638165,0.00010931,2]
[408729971,1774177840083,-500.1638165,0.00010931,2]
[408729972,1774177840092,-500.1638165,0.00010931,2]
[408729973,1774177840101,-500.1638165,0.00010931,2]
[408729974,1774177840110,-500.1638165,0.00010931,2]
[408729975,1774177840119,-500.1638165,0.00010931,2]
[408729976,1774177840128,-500.1638165,0.00010931,2]
[408729977,1774177840138,-500.1638165,0.00010931,2]
[408729978,1774177840147,-500.1638165,0.00010931,2]
[408729979,1774177840157,-500.1638165,0.00010931,2]
[408729980,1774177840166,-500.1638165,0.00010931,2]
[408729981,1774177840176,-500.1638165,0.00010931,2]
[408729982,1774177840191,-500.1638165,0.00010931,2]
[408729983,1774177840201,-500.1638165,0.00010931,2]
[408729984,1774177840210,-500.1638165,0.00010931,2]
[408729986,1774177840219,-500.1638165,0.00010931,2]
[408729987,1774177840230,-500.1638165,0.00010931,2]
[408729988,1774177840239,-500.1638165,0.00010931,2]
[408729989,1774177840248,-500.1638165,0.00010931,2]
[408729990,1774177840258,-500.1638165,0.00010931,2]
[408729991,1774177840267,-500.1638165,0.00010931,2]
[408729992,1774177840276,-500.1638165,0.00010931,2]
[408729993,1774177840285,-1709.06025426,0.00010931,2]
[408729994,1774177840294,-1709.06025426,0.00010931,2]
[408729995,1774177840303,-1709.06025426,0.00010931,2]
[408729996,1774177840312,-1709.06025426,0.00010931,2]
[408729997,1774177840322,-1709.06025426,0.00010931,2]
[408729998,1774177840332,-1709.06025426,0.00010931,2]
[408729999,1774177840341,-1709.06025426,0.00010931,2]
[408730000,1774177840351,-1709.06025426,0.00010931,2]
[408730001,1774177840360,-1709.06025426,0.00010931,2]
[408730002,1774177840370,-1709.06025426,0.00010931,2]
[408730003,1774177840379,-1709.06025426,0.00010931,2]
[408730004,1774177840388,-1709.06025426,0.00010931,2]
[408730005,1774177840397,-1709.06025426,0.00010931,2]
[408730006,1774177840407,-1709.06025426,0.00010931,2]
[408730007,1774177840416,-1709.06025426,0.00010931,2]
[408730008,1774177840426,-1709.06025426,0.00010931,2]
[408730009,1774177840435,-1709.06025426,0.00010931,2]
[408730010,1774177840445,-1709.06025426,0.00010931,2]
[408730011,1774177840454,-1709.06025426,0.00010931,2]
[408730013,1774177840463,-1709.06025426,0.00010931,2]
[408730014,1774177840472,-1709.06025426,0.00010931,2]
[408730015,1774177840481,-1709.06025426,0.00010931,2]
[408730016,1774177840490,-1709.06025426,0.00010931,2]
[408730017,1774177840499,-1709.06025426,0.00010931,2]
[408730018,1774177840508,-1709.06025426,0.00010931,2]
[408730020,1774177840518,-1709.06025426,0.00010931,2]
[408730022,1774177840527,-1709.06025426,0.00010931,2]
[408730023,1774177840536,-1709.06025426,0.00010931,2]
[408730024,1774177840545,-2000.31393901,0.00010932,2]
[408730025,1774177840554,-156.493215,0.00010932,2]
[408730026,1774177840564,-156.493215,0.00010932,2]
[408730028,1774177840573,-156.493215,0.00010932,2]
[408730029,1774177840582,-156.493215,0.00010932,2]
[408730031,1774177840591,-151.0,0.00010932,2]
[408730032,1774177840603,-151.0,0.00010932,2]
[408730033,1774177840612,-151.0,0.00010932,2]
[408730034,1774177840622,-151.0,0.00010932,2]
[408730036,1774177840632,-151.0,0.00010932,2]
[408730038,1774177840641,-151.0,0.00010932,2]
[408730041,1774177840650,-614.807591,0.00010932,2]
[408730042,1774177840659,-614.807591,0.00010932,2]
[408730045,1774177840668,-614.807591,0.00010932,2]
[408730047,1774177840677,-614.807591,0.00010932,2]
[408730049,1774177840687,-614.807591,0.00010932,2]
[408730050,1774177840696,-614.807591,0.00010932,2]
[408730052,1774177840705,-151.0,0.00010932,2]
[408730054,1774177840714,-315.490543,0.00010932,2]
[408730057,1774177840723,-315.490543,0.00010932,2]
[408730059,1774177840732,-315.490543,0.00010932,2]
[408730061,1774177840742,-315.490543,0.00010932,2]
[408730063,1774177840751,-315.490543,0.00010932,2]
[408730065,1774177840760,-315.490543,0.00010932,2]
[408730067,1774177840769,-315.490543,0.00010932,2]
[408730069,1774177840778,-315.490543,0.00010932,2]
[408730071,1774177840787,-315.490543,0.00010932,2]
[408730073,1774177840796,-315.490543,0.00010932,2]
[408730075,1774177840805,-315.490543,0.00010932,2]
[408730077,1774177840814,-315.490543,0.00010932,2]
[408730079,1774177840823,-315.490543,0.00010932,2]
[408730081,1774177840832,-315.490543,0.00010932,2]
[408730082,1774177840841,-315.490543,0.00010932,2]
[408730085,1774177840850,-315.490543,0.00010932,2]
[408730087,1774177840859,-151.0,0.00010932,2]
[408730089,1774177840868,-151.0,0.00010932,2]
[408730091,1774177840877,-151.0,0.00010932,2]
[408730093,1774177840887,-151.0,0.00010932,2]
[408730094,1774177840897,-151.0,0.00010932,2]
[408730096,1774177840906,-151.0,0.00010932,2]
[408730098,1774177840915,-151.0,0.00010932,2]
[408730100,1774177840924,-281.131059,0.00010932,2]
[408730102,1774177840933,-6395.28130882,0.00010932,2]
[408730104,1774177840942,-794.107961,0.00011213,2]
[408730106,1774177840951,-502.59243544,0.00011385,2]
[408730109,1774177840961,-212.53114805,0.00011385,2]
[408730111,1774177840971,-504.23680696,0.00011385,2]
[408730113,1774177840979,-500.0,0.00011385,2]
[408730115,1774177840988,-794.107961,0.00011666,2]
[408730117,1774177840997,-2312.77941318,0.00011726,2]
[408730119,1774177841006,-614.807591,0.00011726,2]
[408730121,1774177841015,-614.807597,0.00011726,2]
[408730123,1774177841024,-315.490543,0.00011726,2]
[408730125,1774177841033,-315.490543,0.00011726,2]
[408730127,1774177841043,-315.490543,0.00011726,2]
[408730129,1774177841052,-315.490551,0.00011726,2]
[408730131,1774177841061,-720.0,0.00011728,2]
[408730134,1774177841070,-794.107961,0.00012119,2]
[408730136,1774177841079,-794.107961,0.00012572,2]
[408730138,1774177841087,-500.0,0.00012845,2]
[408730140,1774177841096,-545.8831639,0.00012845,2]
[408730142,1774177841105,-588.95549647,0.00012845,2]
[408730144,1774177841114,-500.0,0.00012845,2]
[408730146,1774177841123,-2490.77654083,0.00012846,2]
[408730148,1774177841132,-156.493215,0.00012846,2]
[408730150,1774177841142,-156.493215,0.00012846,2]
[408730151,1774177841151,-156.493215,0.00012846,2]
[408730154,1774177841161,-156.493215,0.00012846,2]
[408730156,1774177841170,-151.0,0.00012846,2]
[408730158,1774177841180,-151.0,0.00012846,2]
[408730160,1774177841193,-151.0,0.00012846,2]
[408730162,1774177841203,-151.0,0.00012846,2]
[408730164,1774177841213,-151.0,0.00012846,2]
[408730166,1774177841222,-151.0,0.00012846,2]
[408730167,1774177841232,-864.0,0.00012901,2]
[408730169,1774177841241,-794.107961,0.00013025,2]
[408730171,1774177841250,-269.56640304,0.00013365,14]
[408730174,1774177841259,-1000.0,0.00013699,2]
[408730175,1774177841268,-2639.14965716,0.00013967,2]
[408730177,1774177841277,-151.0,0.00013967,2]
[408730179,1774177841286,-151.0,0.00013967,2]
[408730180,1774177841296,-3869.3569291,0.00014001,2]
[408730181,1774177841305,-156.493215,0.00014001,2]
[408730182,1774177841314,-156.493215,0.00014001,2]
[408730183,1774177841324,-156.493215,0.00014001,2]
[408730184,1774177841333,-156.493215,0.00014001,2]
[408730185,1774177841342,-151.0,0.00014001,2]
[408730186,1774177841352,-151.0,0.00014001,2]
[408730187,1774177841361,-151.0,0.00014001,2]
[408730188,1774177841371,-500.0,0.00014075,2]
[408730189,1774177841381,-500.0,0.00014075,2]
[408730190,1774177841390,-1000.0,0.00014191,2]
[408730191,1774177841400,-1000.0,0.00014623,2]
[408730192,1774177841409,-636.12429053,0.000149,2]
[408730193,1774177841419,-500.70654074,0.000149,2]
[408730194,1774177841428,-500.0,0.000149,2]
[408730195,1774177841437,-501.55993991,0.000149,2]
[408730196,1774177841447,-500.0,0.00015089,2]
[408730197,1774177841457,-1000.0,0.00015171,2]
[408730199,1774177841465,-500.78852705,0.00015448,2]
[408730201,1774177841475,-1000.0,0.0001561,2]
[408730203,1774177841484,-244.0,0.0001561,2]
[408730205,1774177841493,-156.493215,0.0001561,2]
[408730207,1774177841502,-156.493215,0.0001561,2]
[408730209,1774177841511,-156.493215,0.0001561,2]
[408730211,1774177841521,-156.493215,0.0001561,2]
[408730213,1774177841530,-156.493215,0.0001561,2]
[408730215,1774177841539,-156.493215,0.0001561,2]
[408730217,1774177841548,-156.493215,0.0001561,2]
[408730219,1774177841557,-156.493209,0.0001561,2]
[408730221,1774177841566,-151.0,0.0001561,2]
[408730223,1774177841575,-151.0,0.0001561,2]
[408730225,1774177841584,-151.0,0.0001561,2]
[408730226,1774177841593,-151.0,0.0001561,2]
[408730229,1774177841603,-252.740098,0.0001561,2]
[408730231,1774177841612,-151.0,0.0001561,2]
[408730233,1774177841621,-151.0,0.0001561,2]
[408730234,1774177841631,-151.0,0.0001561,2]
[408730236,1774177841640,-166.847931,0.0001561,2]
[408730238,1774177841649,-1000.0,0.00015637,2]
[408730240,1774177841658,-5000.0,0.0001564,2]
[408730242,1774177841667,-1002.62691008,0.00016185,2]
[408730244,1774177841675,-2965.51990113,0.00016209,9]
[408730246,1774177841685,-151.0,0.00016438,2]
[408730248,1774177841694,-151.0,0.00016438,2]
[408730250,1774177841704,-501.21017434,0.0001679,2]
[408730252,1774177841713,-1000.0,0.00017171,2]
[408730254,1774177841722,-492.0,0.00017171,2]
[408730256,1774177841731,-3291.89014511,0.0001733,14]
[408730258,1774177841740,-579.88573713,0.00017511,2]
[408730260,1774177841749,-501.55103683,0.0001761,2]
[408730262,1774177841758,-3464.1898715,0.00018404,2]
[408730264,1774177841768,-53722.3158882,0.00018404,2]
[408730266,1774177841777,-166.0,0.00018404,2]
[408730268,1774177841786,-690.0,0.00018404,2]
[408730270,1774177841795,-166.0,0.00018404,2]
[408730272,1774177841804,-524.65916731,0.00018404,2]
[408730274,1774177841813,-151.0,0.00018404,2]
[408730276,1774177841822,-230.48328669,0.00018404,2]
[408730278,1774177841831,-151.0,0.00018404,2]
[408730280,1774177841840,-151.0,0.00018404,2]
[408730282,1774177841849,-151.0,0.00018404,2]
[408730284,1774177841858,-154.93889612,0.00018404,2]
[408730286,1774177841867,-151.0,0.00018404,2]
[408730288,1774177841876,-151.0,0.00018404,2]
[408730290,1774177841885,-292.0,0.00018404,2]
[408730292,1774177841894,-151.0,0.00018404,2]
[408730294,1774177841903,-151.0,0.00018404,2]
[408730296,1774177841913,-151.0,0.00018404,2]
[408730298,1774177841922,-339.0,0.00018404,2]
[408730300,1774177841931,-339.0,0.00018404,2]
[408730302,1774177841940,-167.14747321,0.00018404,2]
[408730304,1774177841949,-165.16834379,0.00018431,2]
[408730306,1774177841958,-500.0,0.00018431,2]
[408730308,1774177841967,-300.0,0.00018431,2]
[408730310,1774177841976,-3438.11908977,0.00018451,18]
[408730312,1774177841986,-501.74682683,0.00018733,2]
[408730314,1774177841995,-5000.0,0.00018768,2]
[408730316,1774177842004,-1000.0,0.00018888,2]
[408730318,1774177842013,-791.0,0.00018888,2]
[408730320,1774177842022,-1000.0,0.00018979,2]
[408730322,1774177842031,-600.0,0.00018979,2]
[408730324,1774177842040,-1124.84421571,0.00019178,2]
[408730326,1774177842049,-1124.84421571,0.00019178,2]
[408730328,1774177842059,-1124.84421571,0.00019178,2]
[408730330,1774177842068,-1124.84421571,0.00019178,2]
[408730332,1774177842077,-1124.84421571,0.00019178,2]
[408730334,1774177842088,-1124.84421571,0.00019178,2]
[408730336,1774177842097,-1124.84421571,0.00019178,2]
[408730338,1774177842108,-1124.84421571,0.00019178,2]
[408730340,1774177842119,-1124.84421571,0.00019178,2]
[408730342,1774177842129,-1124.84421571,0.00019178,2]
[408730344,1774177842139,-1124.84421571,0.00019178,2]
[408730346,1774177842148,-1124.84421571,0.00019178,2]
[408730348,1774177842159,-1124.84421571,0.00019178,2]
[408730350,1774177842169,-1124.84421571,0.00019178,2]
[408730352,1774177842178,-1124.84421571,0.00019178,2]
[408730354,1774177842191,-1124.84421571,0.00019178,2]
[408730356,1774177842201,-1124.84421571,0.00019178,2]
[408730358,1774177842211,-1124.84421571,0.00019178,2]
[408730360,1774177842220,-1124.84421571,0.00019178,2]
[408730362,1774177842230,-1124.84421571,0.00019178,2]
[408730364,1774177842240,-1124.84421571,0.00019178,2]
[408730366,1774177842249,-1124.84421571,0.00019178,2]
[408730368,1774177842259,-1124.84421571,0.00019178,2]
[408730370,1774177842268,-1124.84421571,0.00019178,2]
[408730372,1774177842277,-1124.84421571,0.00019178,2]
[408730374,1774177842287,-1124.84421571,0.00019178,2]
[408730376,1774177842296,-1124.84421571,0.00019178,2]
[408730378,1774177842306,-1124.84421571,0.00019178,2]
[408730380,1774177842316,-1124.84421571,0.00019178,2]
[408730382,1774177842326,-1124.84421571,0.00019178,2]
[408730384,1774177842335,-1124.84421571,0.00019178,2]
[408730386,1774177842346,-1124.84421571,0.00019178,2]
[408730388,1774177842355,-1124.84421571,0.00019178,2]
[408730390,1774177842365,-1124.84421571,0.00019178,2]
[408730392,1774177842374,-1124.84421571,0.00019178,2]
[408730394,1774177842384,-1124.84421571,0.00019178,2]
[408730396,1774177842394,-1124.84421571,0.00019178,2]
[408730398,1774177842403,-1124.84421571,0.00019178,2]
[408730400,1774177842412,-1124.84421571,0.00019178,2]
[408730402,1774177842421,-1124.84421571,0.00019178,2]
[408730404,1774177842430,-1124.84421571,0.00019178,2]
[408730406,1774177842440,-1124.84421571,0.00019178,2]
[408730408,1774177842450,-1124.84421571,0.00019178,2]
[408730410,1774177842459,-1124.84421571,0.00019178,2]
[408730412,1774177842469,-1124.84421571,0.00019178,2]
[408730414,1774177842478,-1124.84421571,0.00019178,2]
[408730416,1774177842488,-1124.84421571,0.00019178,2]
[408730418,1774177842497,-1124.84421571,0.00019178,2]
[408730420,1774177842507,-1124.84421571,0.00019178,2]
[408730422,1774177842515,-1124.84421571,0.00019178,2]
[408730423,1774177842524,-1124.84421571,0.00019178,2]
[408730425,1774177842534,-1124.84421571,0.00019178,2]
[408730427,1774177842543,-1124.84421571,0.00019178,2]
[408730429,1774177842552,-1124.84421571,0.00019178,2]
[408730431,1774177842562,-1124.84421571,0.00019178,2]
[408730433,1774177842572,-1124.84421571,0.00019178,2]
[408730435,1774177842581,-1124.84421571,0.00019178,2]
[408730437,1774177842591,-1124.84421571,0.00019178,2]
[408730439,1774177842600,-1124.84421571,0.00019178,2]
[408730441,1774177842610,-1124.84421571,0.00019178,2]
[408730443,1774177842619,-1124.84421571,0.00019178,2]
[408730445,1774177842628,-1124.84421571,0.00019178,2]
[408730447,1774177842638,-1124.84421571,0.00019178,2]
[408730449,1774177842647,-1124.84421571,0.00019178,2]
[408730451,1774177842657,-1124.84421571,0.00019178,2]
[408730453,1774177842665,-1124.84421571,0.00019178,2]
[408730455,1774177842674,-1124.84421571,0.00019178,2]
[408730457,1774177842684,-1124.84421571,0.00019178,2]
[408730459,1774177842693,-1124.84421571,0.00019178,2]
[408730461,1774177842703,-7519.58393144,0.00019178,2]
[408730463,1774177842712,-7519.58393144,0.00019178,2]
[408730465,1774177842722,-7519.58393144,0.00019178,2]
[408730467,1774177842731,-7519.58393144,0.00019178,2]
[408730469,1774177842740,-7519.58393144,0.00019178,2]
[408730471,1774177842750,-7519.58393144,0.00019178,2]
[408730472,1774177842759,-7519.58393144,0.00019178,2]
[408730474,1774177842768,-7519.58393144,0.00019178,2]
[408730476,1774177842778,-7519.58393144,0.00019178,2]
[408730478,1774177842787,-7519.58393144,0.00019178,2]
[408730480,1774177842796,-7519.58393144,0.00019178,2]
[408730482,1774177842805,-7519.58393144,0.00019178,2]
[408730484,1774177842815,-7519.58393144,0.00019178,2]
[408730486,1774177842824,-7519.58393144,0.00019178,2]
[408730488,1774177842833,-7519.58393144,0.00019178,2]
[408730491,1774177842843,-7519.58393144,0.00019178,2]
[408730493,1774177842852,-7519.58393144,0.00019178,2]
[408730495,1774177842862,-7519.58393144,0.00019178,2]
[408730496,1774177842871,-7519.58393144,0.00019178,2]
[408730498,1774177842880,-7519.58393144,0.00019178,2]
[408730500,1774177842889,-7519.58393144,0.00019178,2]
[408730502,1774177842898,-860.0,0.00019178,2]
[408730504,1774177842908,-860.0,0.00019178,2]
[408730506,1774177842917,-860.0,0.00019178,2]
[408730509,1774177842926,-860.0,0.00019178,2]
[408730512,1774177842936,-860.0,0.00019178,2]
[408730515,1774177842945,-860.0,0.00019178,2]
[408730518,1774177842954,-860.0,0.00019178,2]
[408730520,1774177842964,-860.0,0.00019178,2]
[408730523,1774177842973,-860.0,0.00019178,2]
[408730525,1774177842982,-860.0,0.00019178,2]
[408730528,1774177842991,-860.0,0.00019178,2]
[408730531,1774177843001,-860.0,0.00019178,2]
[408730535,1774177843011,-860.0,0.00019178,2]
[408730539,1774177843020,-860.0,0.00019178,2]
[408730542,1774177843030,-860.0,0.00019178,2]
[408730544,1774177843039,-1091.22,0.00019178,2]
[408730546,1774177843049,-1500.0,0.00019527,2]
[408730548,1774177843058,-900.0,0.00019527,2]
[408730550,1774177843067,-3618.26038909,0.00019572,22]
[408730552,1774177843076,-6000.0,0.0002,5]
[408730554,1774177843085,-2000.0,0.00020075,2]
[408730556,1774177843094,-1200.0,0.00020075,2]
[408730558,1774177843103,-2150.738,0.0002033,2]
[408730559,1774177843112,-500.37940256,0.0002044,2]
[408730561,1774177843122,-6000.0,0.000206,5]
[408730563,1774177843131,-1844.20834733,0.00020623,2]
[408730565,1774177843141,-1457.13674509,0.00020623,2]
[408730567,1774177843150,-3764.21201641,0.00020693,27]
[408730569,1774177843160,-1000.0,0.00020712,5]
[408730590,1774177843323,-11987.0689476,0.00020735,2]
[408730593,1774177843358,-1000.0,0.00020777,2]
[408730595,1774177843367,-1000.0,0.00020777,2]
[408730597,1774177843377,-439.72987524,0.000208,27]
[408730599,1774177843386,-1023.2149922,0.000208,27]
[408730601,1774177843395,-903.58909439,0.000208,27]
[408730603,1774177843404,-998.87255976,0.000208,27]
[408730605,1774177843413,-151.36825736,0.000208,27]
[408730607,1774177843422,-153.66416891,0.000208,27]
[408730609,1774177843432,-1282.0,0.00020874,10]
[408730611,1774177843441,-2230.315306,0.00020878,2]
[408730613,1774177843451,-151.0,0.000209,3]
[408730615,1774177843459,-151.0,0.000209,4]
[408730617,1774177843469,-151.0,0.000211,3]
[408730619,1774177843478,-5222.82,0.000212,5]
[408730621,1774177843487,-2674.676614,0.00021255,2]
[408730622,1774177843496,-324.7311905,0.00021351,2]
[408730623,1774177843505,-150.0,0.000214,2]
[408730625,1774177843514,-2018.74063289,0.00021426,2]
[408730627,1774177843523,-500.0,0.00021439,2]
[408730629,1774177843533,-318.0,0.00021446,2]
[408730631,1774177843542,-318.0,0.00021695,2]
[408730633,1774177843552,-438.0,0.00021774,2]
[408730635,1774177843561,-183.0,0.00021774,2]
[408730637,1774177843570,-3914.32976584,0.00021814,32]
[408730639,1774177843579,-1666.39598676,0.00021818,2]
[408730641,1774177843589,-1556661.35728135,0.0002185,7]
[408730643,1774177843597,-151.0,0.00021918,2]
[408730645,1774177843606,-264.88318,0.00021918,2]
[408730647,1774177843616,-400.0,0.0002194,2]
[408730649,1774177843625,-400.0,0.0002194,4]
[408730651,1774177843633,-318.0,0.00021944,2]
[408730653,1774177843642,-1000.0,0.00021987,2]
[408730655,1774177843651,-452.0,0.00022023,2]
[408730657,1774177843661,-82667.13152493,0.000221,5]
[408730659,1774177843670,-151.0,0.000221,8]
[408730661,1774177843679,-151.871213,0.00022192,2]
[408730663,1774177843688,-318.0,0.00022192,2]
[408730665,1774177843698,-500.0,0.00022202,120]
[408730667,1774177843707,-535.9,0.00022202,120]
[408730669,1774177843716,-500.0,0.00022202,120]
[408730670,1774177843726,-500.0,0.00022202,120]
[408730671,1774177843735,-500.0,0.00022202,120]
[408730672,1774177843744,-500.0,0.00022202,120]
[408730673,1774177843753,-500.0,0.00022202,120]
[408730674,1774177843762,-500.0,0.00022202,120]
[408730675,1774177843771,-500.0,0.00022202,120]
[408730676,1774177843781,-500.0,0.00022202,120]
[408730677,1774177843790,-500.0,0.00022202,120]
[408730678,1774177843799,-500.0,0.00022202,120]
[408730679,1774177843808,-500.0,0.00022202,120]
[408730680,1774177843817,-500.0,0.00022202,120]
[408730681,1774177843826,-500.0,0.00022202,120]
[408730682,1774177843836,-500.0,0.00022202,120]
[408730683,1774177843845,-500.0,0.00022202,120]
[408730684,1774177843854,-500.0,0.00022202,120]